[Event "Early-Titled-Tuesday-Blitz-February-20-2024"]
[Site "Chess.com"]
[Date "2024.02.20"]
[Round "2"]
[White "RamyresCoelho"]
[Black "Bilan_Danila"]
[Result "1-0"]
[WhiteElo "2248"]
[BlackElo "2486"]
[TimeControl "180+1"]
[EndTime "8:17:54 PST"]
[Termination "RamyresCoelho won on time"]

1. e4 {[%clk 0:03:00]} 1... c6 {[%clk 0:02:59]} 2. d4 {[%clk 0:02:59.4]} 2... d5
{[%clk 0:02:59.6]} 3. Nc3 {[%clk 0:03:00]} 3... b5 {[%clk 0:02:59.4]} 4. e5
{[%clk 0:02:58.2]} 4... Bf5 {[%clk 0:02:58.3]} 5. Bd3 {[%clk 0:02:57.6]} 5... g6
{[%clk 0:02:56.2]} 6. Bxf5 {[%clk 0:02:56.1]} 6... gxf5 {[%clk 0:02:56.5]} 7.
Qd3 {[%clk 0:02:55.6]} 7... e6 {[%clk 0:02:56.4]} 8. Nf3 {[%clk 0:02:54.6]} 8...
Ne7 {[%clk 0:02:56.2]} 9. Bg5 {[%clk 0:02:53.5]} 9... Nd7 {[%clk 0:02:50.3]} 10.
a4 {[%clk 0:02:31.4]} 10... b4 {[%clk 0:02:34.9]} 11. Ne2 {[%clk 0:02:23.6]}
11... a5 {[%clk 0:02:31]} 12. Nf4 {[%clk 0:02:21.9]} 12... Qb6 {[%clk
0:02:22.1]} 13. O-O {[%clk 0:02:19.1]} 13... Ng6 {[%clk 0:02:21.8]} 14. Nh5
{[%clk 0:02:16.4]} 14... h6 {[%clk 0:02:06]} 15. Bf6 {[%clk 0:02:14.6]} 15...
Rg8 {[%clk 0:01:59.7]} 16. Kh1 {[%clk 0:02:11.8]} 16... Be7 {[%clk 0:01:53.3]}
17. Bxe7 {[%clk 0:02:08.3]} 17... Nxe7 {[%clk 0:01:45.2]} 18. Qe3 {[%clk
0:02:01.2]} 18... Rh8 {[%clk 0:01:40.6]} 19. c3 {[%clk 0:01:45.7]} 19... c5
{[%clk 0:01:35.3]} 20. cxb4 {[%clk 0:01:36.6]} 20... axb4 {[%clk 0:01:27.3]} 21.
dxc5 {[%clk 0:01:34.2]} 21... Qxc5 {[%clk 0:01:26.9]} 22. Qf4 {[%clk 0:01:31.2]}
22... Qc4 {[%clk 0:01:12.9]} 23. Qd2 {[%clk 0:01:14.3]} 23... Ng6 {[%clk
0:01:06.3]} 24. Rfc1 {[%clk 0:01:02.3]} 24... Qg4 {[%clk 0:00:59.3]} 25. Nf6+
{[%clk 0:00:58.1]} 25... Nxf6 {[%clk 0:00:55.8]} 26. exf6 {[%clk 0:00:59]} 26...
Nf4 {[%clk 0:00:44.3]} 27. Rg1 {[%clk 0:00:30.5]} 27... Rb8 {[%clk 0:00:40.9]}
28. Ne5 {[%clk 0:00:25.1]} 28... Qg5 {[%clk 0:00:30.7]} 29. Rac1 {[%clk
0:00:15.3]} 29... Ng6 {[%clk 0:00:13.9]} 30. Qxb4 {[%clk 0:00:09]} 30... Rd8
{[%clk 0:00:06.9]} 31. Qb5+ {[%clk 0:00:04.3]} 31... Kf8 {[%clk 0:00:07.2]} 32.
Nd7+ {[%clk 0:00:04.2]} 32... Kg8 {[%clk 0:00:06.7]} 33. Rc7 {[%clk 0:00:04.2]}
33... Kh7 {[%clk 0:00:02.9]} 34. Qb7 {[%clk 0:00:03.7]} 34... Nf4 {[%clk
0:00:01.8]} 35. Ne5 {[%clk 0:00:03.3]} 35... Rhf8 {[%clk 0:00:02.1]} 36. Rxf7+
{[%clk 0:00:03.2]} 1-0

[Event "Early-Titled-Tuesday-Blitz-February-20-2024"]
[Site "Chess.com"]
[Date "2024.02.20"]
[Round "2"]
[White "maciek_92"]
[Black "ACollins05"]
[Result "1/2-1/2"]
[WhiteElo "2806"]
[BlackElo "2571"]
[TimeControl "180+1"]
[EndTime "8:17:56 PST"]
[Termination "Game drawn by repetition"]

1. c4 {[%clk 0:03:00.9]} 1... e6 {[%clk 0:02:58.9]} 2. Nf3 {[%clk 0:03:00.5]}
2... d5 {[%clk 0:02:58.8]} 3. g3 {[%clk 0:02:58.6]} 3... Nf6 {[%clk 0:02:56.6]}
4. Bg2 {[%clk 0:02:58.7]} 4... dxc4 {[%clk 0:02:56.9]} 5. O-O {[%clk 0:02:57.9]}
5... a6 {[%clk 0:02:55.5]} 6. a4 {[%clk 0:02:57.7]} 6... Nc6 {[%clk 0:02:41.2]}
7. Na3 {[%clk 0:02:46.8]} 7... Na5 {[%clk 0:02:40.6]} 8. d3 {[%clk 0:02:38.7]}
8... cxd3 {[%clk 0:02:38.4]} 9. Bd2 {[%clk 0:02:22.9]} 9... Nc6 {[%clk
0:02:31.5]} 10. Nc4 {[%clk 0:02:22.7]} 10... Bd6 {[%clk 0:02:24]} 11. Bc3 {[%clk
0:02:17.5]} 11... O-O {[%clk 0:02:22]} 12. Qxd3 {[%clk 0:02:16.6]} 12... Nd5
{[%clk 0:02:21.5]} 13. Rfd1 {[%clk 0:02:11.8]} 13... Ncb4 {[%clk 0:02:04.5]} 14.
Bxb4 {[%clk 0:02:01.7]} 14... Nxb4 {[%clk 0:02:05.4]} 15. Qb3 {[%clk 0:02:00.1]}
15... a5 {[%clk 0:02:01.4]} 16. e4 {[%clk 0:01:59.8]} 16... Qe8 {[%clk
0:01:52.8]} 17. Nxd6 {[%clk 0:01:57.3]} 17... cxd6 {[%clk 0:01:53.7]} 18. Rxd6
{[%clk 0:01:57.3]} 18... Bd7 {[%clk 0:01:52.4]} 19. Ne5 {[%clk 0:01:57.2]} 19...
Bc6 {[%clk 0:01:44.1]} 20. Nxc6 {[%clk 0:01:56.2]} 20... bxc6 {[%clk 0:01:45]}
21. Qc3 {[%clk 0:01:52.8]} 21... Rd8 {[%clk 0:01:42.4]} 22. e5 {[%clk
0:01:50.9]} 22... Rxd6 {[%clk 0:01:34.7]} 23. exd6 {[%clk 0:01:51.8]} 23... Qd7
{[%clk 0:01:35.1]} 24. Qc5 {[%clk 0:01:51.9]} 24... Rd8 {[%clk 0:01:31.5]} 25.
Rd1 {[%clk 0:01:51.2]} 25... Nd5 {[%clk 0:01:30.9]} 26. Qxa5 {[%clk 0:01:49.5]}
26... Qxd6 {[%clk 0:01:30.7]} 27. b4 {[%clk 0:01:45.4]} 27... Rb8 {[%clk
0:01:27.8]} 28. b5 {[%clk 0:01:43.3]} 28... cxb5 {[%clk 0:01:26.6]} 29. axb5
{[%clk 0:01:44.2]} 29... Qc5 {[%clk 0:01:20.5]} 30. Bxd5 {[%clk 0:01:41.8]}
30... exd5 {[%clk 0:01:17.3]} 31. Rb1 {[%clk 0:01:42.1]} 31... Qc2 {[%clk
0:01:01.8]} 32. Re1 {[%clk 0:01:34]} 32... Qc5 {[%clk 0:00:59.4]} 33. Qa4 {[%clk
0:01:31.2]} 33... g6 {[%clk 0:00:55.1]} 34. Rb1 {[%clk 0:01:31.5]} 34... Qc4
{[%clk 0:00:47.6]} 35. Qa5 {[%clk 0:01:24.4]} 35... Qc2 {[%clk 0:00:44.4]} 36.
Qa1 {[%clk 0:01:19.4]} 36... Qc5 {[%clk 0:00:41.6]} 37. Qb2 {[%clk 0:01:10.2]}
37... d4 {[%clk 0:00:38.3]} 38. Rc1 {[%clk 0:01:06]} 38... Rxb5 {[%clk
0:00:28.6]} 39. Qd2 {[%clk 0:01:01.2]} 39... Qd5 {[%clk 0:00:17.7]} 40. Rd1
{[%clk 0:00:59.8]} 40... h5 {[%clk 0:00:13.3]} 41. h4 {[%clk 0:00:58.3]} 41...
Kg7 {[%clk 0:00:13.2]} 42. Qd3 {[%clk 0:00:51.6]} 42... Rb3 {[%clk 0:00:09.7]}
43. Qxd4+ {[%clk 0:00:47.6]} 43... Qxd4 {[%clk 0:00:10.6]} 44. Rxd4 {[%clk
0:00:48.2]} 44... Rb5 {[%clk 0:00:10.8]} 45. Kg2 {[%clk 0:00:48.1]} 45... Rf5
{[%clk 0:00:10.7]} 46. Rd7 {[%clk 0:00:48.1]} 46... Kf6 {[%clk 0:00:11.1]} 47.
f3 {[%clk 0:00:48.2]} 47... Re5 {[%clk 0:00:11.6]} 48. Kf2 {[%clk 0:00:47.5]}
48... Re7 {[%clk 0:00:11.5]} 49. Rd2 {[%clk 0:00:46.7]} 49... Ke6 {[%clk
0:00:10.7]} 50. Ke3 {[%clk 0:00:46.4]} 50... Kf6+ {[%clk 0:00:10.8]} 51. Kf4
{[%clk 0:00:46.8]} 51... Ra7 {[%clk 0:00:10.2]} 52. Rd6+ {[%clk 0:00:46.8]}
52... Kg7 {[%clk 0:00:09.4]} 53. Rd4 {[%clk 0:00:46]} 53... Re7 {[%clk
0:00:09.1]} 54. Rc4 {[%clk 0:00:46.1]} 54... Ra7 {[%clk 0:00:09.1]} 55. g4
{[%clk 0:00:46.3]} 55... hxg4 {[%clk 0:00:08.6]} 56. fxg4 {[%clk 0:00:47.2]}
56... Ra1 {[%clk 0:00:08.9]} 57. Rc7 {[%clk 0:00:46.4]} 57... Ra4+ {[%clk
0:00:07.7]} 58. Kf3 {[%clk 0:00:46.8]} 58... Ra3+ {[%clk 0:00:07.3]} 59. Kf4
{[%clk 0:00:47.6]} 59... Ra4+ {[%clk 0:00:07.6]} 60. Kg5 {[%clk 0:00:46.9]}
60... Ra5+ {[%clk 0:00:07.8]} 61. Kf4 {[%clk 0:00:47.4]} 61... Ra4+ {[%clk
0:00:08]} 1/2-1/2

[Event "Early-Titled-Tuesday-Blitz-February-20-2024"]
[Site "Chess.com"]
[Date "2024.02.20"]
[Round "2"]
[White "Perecke"]
[Black "cukin84"]
[Result "1-0"]
[WhiteElo "2509"]
[BlackElo "2246"]
[TimeControl "180+1"]
[EndTime "8:17:59 PST"]
[Termination "Perecke won by resignation"]

1. d4 {[%clk 0:02:58.9]} 1... f5 {[%clk 0:02:59]} 2. Bg5 {[%clk 0:02:57.5]} 2...
h6 {[%clk 0:02:56.1]} 3. Bh4 {[%clk 0:02:57.5]} 3... g5 {[%clk 0:02:55.5]} 4.
Bg3 {[%clk 0:02:57.9]} 4... Nf6 {[%clk 0:02:53.5]} 5. e3 {[%clk 0:02:57.6]} 5...
d6 {[%clk 0:02:53.1]} 6. c4 {[%clk 0:02:56]} 6... Bg7 {[%clk 0:02:52.5]} 7. Nc3
{[%clk 0:02:56.6]} 7... O-O {[%clk 0:02:46.8]} 8. h4 {[%clk 0:02:55.8]} 8... g4
{[%clk 0:02:46.3]} 9. Nge2 {[%clk 0:02:52]} 9... Nh5 {[%clk 0:02:42.7]} 10. Bh2
{[%clk 0:02:35.3]} 10... c6 {[%clk 0:02:38.9]} 11. Nf4 {[%clk 0:02:30.7]} 11...
Nxf4 {[%clk 0:02:35.5]} 12. Bxf4 {[%clk 0:02:31.6]} 12... e5 {[%clk 0:02:35.5]}
13. dxe5 {[%clk 0:01:40.5]} 13... dxe5 {[%clk 0:02:33.9]} 14. Qxd8 {[%clk
0:01:40.5]} 14... Rxd8 {[%clk 0:02:33.5]} 15. Bh2 {[%clk 0:01:41.1]} 15... Na6
{[%clk 0:02:25.3]} 16. Be2 {[%clk 0:01:38.8]} 16... Nb4 {[%clk 0:02:18.2]} 17.
O-O {[%clk 0:01:36.5]} 17... Be6 {[%clk 0:02:11.4]} 18. Rad1 {[%clk 0:01:23.2]}
18... Bf6 {[%clk 0:02:06.7]} 19. a3 {[%clk 0:01:19.7]} 19... Na6 {[%clk
0:02:06]} 20. b4 {[%clk 0:01:01.9]} 20... Kf7 {[%clk 0:01:59.2]} 21. f3 {[%clk
0:00:36.7]} 21... h5 {[%clk 0:01:53.5]} 22. fxg4 {[%clk 0:00:33.8]} 22... hxg4
{[%clk 0:01:51.4]} 23. Bxg4 {[%clk 0:00:26.7]} 23... Kg6 {[%clk 0:01:39.6]} 24.
Be2 {[%clk 0:00:25.5]} 24... e4 {[%clk 0:01:23.1]} 25. Na4 {[%clk 0:00:24.7]}
25... Bxh4 {[%clk 0:01:21.4]} 26. b5 {[%clk 0:00:23.3]} 26... Nb8 {[%clk
0:00:46.4]} 27. Rxd8 {[%clk 0:00:21.2]} 27... Bxd8 {[%clk 0:00:47.3]} 28. Nc5
{[%clk 0:00:21.3]} 28... Bc8 {[%clk 0:00:43]} 29. Rd1 {[%clk 0:00:21.7]} 29...
Bg5 {[%clk 0:00:38.7]} 30. Rd6+ {[%clk 0:00:22.1]} 30... Kf7 {[%clk 0:00:30.9]}
31. Kf2 {[%clk 0:00:22.7]} 31... Ke7 {[%clk 0:00:29.4]} 32. Be5 {[%clk
0:00:17.5]} 32... Nd7 {[%clk 0:00:26.4]} 33. Nxd7 {[%clk 0:00:17.5]} 33... Bxd7
{[%clk 0:00:26.2]} 34. Rg6 {[%clk 0:00:18.1]} 34... Bh4+ {[%clk 0:00:24.8]} 35.
g3 {[%clk 0:00:18]} 35... Be8 {[%clk 0:00:20.9]} 36. Rg7+ {[%clk 0:00:17.3]}
36... Ke6 {[%clk 0:00:21.3]} 37. gxh4 {[%clk 0:00:16]} 37... Kxe5 {[%clk
0:00:21.7]} 38. Rxb7 {[%clk 0:00:16.7]} 38... cxb5 {[%clk 0:00:21]} 39. cxb5
{[%clk 0:00:17]} 39... Rc8 {[%clk 0:00:17.8]} 40. a4 {[%clk 0:00:14.7]} 40...
Rc2 {[%clk 0:00:17.6]} 41. Re7+ {[%clk 0:00:15.4]} 41... Kf6 {[%clk 0:00:17.1]}
42. Rxe8 {[%clk 0:00:16.3]} 42... Kg6 {[%clk 0:00:15.2]} 43. Re7 {[%clk
0:00:15.6]} 43... Kf6 {[%clk 0:00:15]} 44. Rxa7 {[%clk 0:00:16.2]} 44... Ke5
{[%clk 0:00:12.7]} 45. b6 {[%clk 0:00:16.8]} 45... Rb2 {[%clk 0:00:11.8]} 46. b7
{[%clk 0:00:16.6]} 46... f4 {[%clk 0:00:11.5]} 47. Ra5+ {[%clk 0:00:14.8]} 47...
Kd6 {[%clk 0:00:09.6]} 48. Rb5 {[%clk 0:00:15.3]} 48... fxe3+ {[%clk 0:00:07.7]}
49. Kxe3 {[%clk 0:00:15.6]} 1-0

[Event "Early-Titled-Tuesday-Blitz-February-20-2024"]
[Site "Chess.com"]
[Date "2024.02.20"]
[Round "2"]
[White "agvega14"]
[Black "ATM622"]
[Result "0-1"]
[WhiteElo "2196"]
[BlackElo "2485"]
[TimeControl "180+1"]
[EndTime "8:18:00 PST"]
[Termination "ATM622 won by resignation"]

1. d4 {[%clk 0:02:59.8]} 1... Nf6 {[%clk 0:02:59.3]} 2. c4 {[%clk 0:02:57.4]}
2... e6 {[%clk 0:02:58.3]} 3. Nc3 {[%clk 0:02:56.5]} 3... Bb4 {[%clk 0:02:50.7]}
4. e3 {[%clk 0:02:49.7]} 4... d5 {[%clk 0:02:49.8]} 5. a3 {[%clk 0:02:47.5]}
5... Bxc3+ {[%clk 0:02:47.5]} 6. bxc3 {[%clk 0:02:48.4]} 6... O-O {[%clk
0:02:47.8]} 7. cxd5 {[%clk 0:02:47.7]} 7... exd5 {[%clk 0:02:45.6]} 8. Bd3
{[%clk 0:02:47.8]} 8... Bg4 {[%clk 0:02:45]} 9. Ne2 {[%clk 0:02:47]} 9... Nbd7
{[%clk 0:02:43.6]} 10. O-O {[%clk 0:02:46.9]} 10... Re8 {[%clk 0:02:43.7]} 11.
f3 {[%clk 0:02:46.9]} 11... Bh5 {[%clk 0:02:43.8]} 12. Nf4 {[%clk 0:02:43.3]}
12... Bg6 {[%clk 0:02:42.1]} 13. Nxg6 {[%clk 0:02:43.5]} 13... hxg6 {[%clk
0:02:43]} 14. Ra2 {[%clk 0:02:41.4]} 14... c6 {[%clk 0:02:33.2]} 15. Re2 {[%clk
0:02:40.8]} 15... Nf8 {[%clk 0:02:14]} 16. Qc2 {[%clk 0:02:36.7]} 16... Ne6
{[%clk 0:02:09.5]} 17. e4 {[%clk 0:02:24.9]} 17... Nh5 {[%clk 0:02:02.8]} 18. g3
{[%clk 0:02:20.6]} 18... Qc7 {[%clk 0:01:55.8]} 19. e5 {[%clk 0:02:19.1]} 19...
c5 {[%clk 0:01:48.8]} 20. Be3 {[%clk 0:02:00.8]} 20... Rac8 {[%clk 0:01:43.7]}
21. Qb1 {[%clk 0:01:49.4]} 21... Qa5 {[%clk 0:01:34.6]} 22. Bxg6 {[%clk
0:01:39.1]} 22... fxg6 {[%clk 0:01:24.5]} 23. Qxg6 {[%clk 0:01:38.7]} 23... Nxg3
{[%clk 0:01:23]} 24. hxg3 {[%clk 0:01:33.8]} 24... Qxc3 {[%clk 0:01:22.2]} 25.
Rc1 {[%clk 0:01:19.4]} 25... Qxa3 {[%clk 0:01:16.1]} 26. dxc5 {[%clk 0:00:54.6]}
26... d4 {[%clk 0:01:12.8]} 27. Bd2 {[%clk 0:00:44.8]} 27... Nf8 {[%clk
0:00:54.5]} 28. Qe4 {[%clk 0:00:41.2]} 28... Rxc5 {[%clk 0:00:50.8]} 29. Rxc5
{[%clk 0:00:40.6]} 29... Qxc5 {[%clk 0:00:49.1]} 30. f4 {[%clk 0:00:39.4]} 30...
d3+ {[%clk 0:00:34.5]} 31. Rf2 {[%clk 0:00:39]} 31... Qc2 {[%clk 0:00:21.4]} 32.
Be3 {[%clk 0:00:36.6]} 32... Qd1+ {[%clk 0:00:18.9]} 33. Rf1 {[%clk 0:00:32.5]}
33... Qe2 {[%clk 0:00:15.5]} 34. Rf2 {[%clk 0:00:32.6]} 34... Qe1+ {[%clk
0:00:14.9]} 35. Kg2 {[%clk 0:00:32]} 35... Rd8 {[%clk 0:00:12.5]} 36. Rd2 {[%clk
0:00:29.2]} 36... Ne6 {[%clk 0:00:07.7]} 37. Rxd3 {[%clk 0:00:27]} 37... Qe2+
{[%clk 0:00:07.5]} 38. Kh3 {[%clk 0:00:22.6]} 38... Qxd3 {[%clk 0:00:07.1]} 39.
Qxd3 {[%clk 0:00:21.5]} 39... Rxd3 {[%clk 0:00:08]} 40. Bxa7 {[%clk 0:00:22.3]}
40... Nxf4+ {[%clk 0:00:07.9]} 41. Kg4 {[%clk 0:00:22.6]} 41... Nd5 {[%clk
0:00:07.8]} 42. e6 {[%clk 0:00:20.5]} 42... Nf6+ {[%clk 0:00:07.5]} 43. Kf5
{[%clk 0:00:20.5]} 43... Rd5+ {[%clk 0:00:07.4]} 44. Kg6 {[%clk 0:00:19.6]}
44... Kf8 {[%clk 0:00:06.8]} 45. Bb8 {[%clk 0:00:18.8]} 45... Ke7 {[%clk
0:00:06.4]} 0-1

[Event "Early-Titled-Tuesday-Blitz-February-20-2024"]
[Site "Chess.com"]
[Date "2024.02.20"]
[Round "2"]
[White "Pingah9"]
[Black "LaPiToB"]
[Result "1-0"]
[WhiteElo "2534"]
[BlackElo "2305"]
[TimeControl "180+1"]
[EndTime "8:18:01 PST"]
[Termination "Pingah9 won on time"]

1. e4 {[%clk 0:03:00.5]} 1... c6 {[%clk 0:02:57.6]} 2. Nc3 {[%clk 0:03:00.1]}
2... d5 {[%clk 0:02:57.7]} 3. Qf3 {[%clk 0:03:00.2]} 3... dxe4 {[%clk
0:02:54.9]} 4. Nxe4 {[%clk 0:03:01.1]} 4... Nf6 {[%clk 0:02:54.9]} 5. Bc4 {[%clk
0:03:00]} 5... Qd4 {[%clk 0:02:40.6]} 6. Nxf6+ {[%clk 0:02:58.3]} 6... exf6
{[%clk 0:02:40.7]} 7. Bb3 {[%clk 0:02:51]} 7... Bg4 {[%clk 0:02:34.9]} 8. Qe3+
{[%clk 0:02:50.5]} 8... Qxe3+ {[%clk 0:02:33.2]} 9. fxe3 {[%clk 0:02:51.4]} 9...
Bd6 {[%clk 0:02:25.1]} 10. Ne2 {[%clk 0:02:48.8]} 10... Nd7 {[%clk 0:02:20.7]}
11. h3 {[%clk 0:02:47.9]} 11... Bf5 {[%clk 0:02:14.5]} 12. d3 {[%clk 0:02:43.1]}
12... Nc5 {[%clk 0:02:10.1]} 13. e4 {[%clk 0:02:39.8]} 13... Bd7 {[%clk
0:02:06.2]} 14. Be3 {[%clk 0:02:39.2]} 14... Nxb3 {[%clk 0:02:04.1]} 15. axb3
{[%clk 0:02:40.1]} 15... c5 {[%clk 0:01:32.5]} 16. Kd2 {[%clk 0:02:38.1]} 16...
Ke7 {[%clk 0:01:25]} 17. Rhf1 {[%clk 0:02:33.4]} 17... Rhd8 {[%clk 0:01:19.1]}
18. Bf4 {[%clk 0:02:23.4]} 18... Be5 {[%clk 0:01:09.3]} 19. Nc3 {[%clk
0:02:14.3]} 19... Bc6 {[%clk 0:01:08.3]} 20. g4 {[%clk 0:02:13.9]} 20... b5
{[%clk 0:00:58.9]} 21. Bxe5 {[%clk 0:02:12.5]} 21... fxe5 {[%clk 0:00:58.6]} 22.
Rf5 {[%clk 0:02:13.1]} 22... f6 {[%clk 0:00:58.2]} 23. g5 {[%clk 0:02:02.6]}
23... b4 {[%clk 0:00:56.9]} 24. Ne2 {[%clk 0:01:54.4]} 24... Bxe4 {[%clk
0:00:55.6]} 25. gxf6+ {[%clk 0:01:52]} 25... gxf6 {[%clk 0:00:54.6]} 26. Rf2
{[%clk 0:01:48]} 26... Bg6 {[%clk 0:00:54.5]} 27. Raf1 {[%clk 0:01:44.8]} 27...
Rd6 {[%clk 0:00:53.5]} 28. Ke3 {[%clk 0:01:44.3]} 28... f5 {[%clk 0:00:49]} 29.
Ng1 {[%clk 0:01:37.9]} 29... Rad8 {[%clk 0:00:47.2]} 30. Nf3 {[%clk 0:01:29.2]}
30... e4 {[%clk 0:00:36.9]} 31. dxe4 {[%clk 0:01:27.4]} 31... fxe4 {[%clk
0:00:36.6]} 32. Ne5 {[%clk 0:01:21.9]} 32... Re6 {[%clk 0:00:28.8]} 33. Nc4
{[%clk 0:01:12.9]} 33... Rd5 {[%clk 0:00:22.1]} 34. Ra1 {[%clk 0:01:12.6]} 34...
Rd7 {[%clk 0:00:19.9]} 35. Ra5 {[%clk 0:01:11.1]} 35... Rc7 {[%clk 0:00:14.9]}
36. h4 {[%clk 0:01:08.9]} 36... Rf6 {[%clk 0:00:15.3]} 37. Rxf6 {[%clk
0:01:00.4]} 37... Kxf6 {[%clk 0:00:16.2]} 38. Kf4 {[%clk 0:01:01]} 38... h5
{[%clk 0:00:15.4]} 39. Ne3 {[%clk 0:01:01.1]} 39... Ke6 {[%clk 0:00:13]} 40.
Ra6+ {[%clk 0:01:00.6]} 40... Kf7 {[%clk 0:00:12.7]} 41. Nd5 {[%clk 0:00:57.7]}
41... Rd7 {[%clk 0:00:11.5]} 42. Ne3 {[%clk 0:00:47.3]} 42... Kg7 {[%clk
0:00:11.9]} 43. Nc4 {[%clk 0:00:46.4]} 43... Rf7+ {[%clk 0:00:10.9]} 44. Ke3
{[%clk 0:00:44.6]} 44... Rf3+ {[%clk 0:00:10.6]} 45. Ke2 {[%clk 0:00:44.9]}
45... Rh3 {[%clk 0:00:10.5]} 46. Rxa7+ {[%clk 0:00:44.9]} 46... Kf6 {[%clk
0:00:10.9]} 47. Ra6+ {[%clk 0:00:40.4]} 47... Kf5 {[%clk 0:00:11.3]} 48. Ne3+
{[%clk 0:00:40.9]} 48... Kf4 {[%clk 0:00:09.7]} 49. Ng2+ {[%clk 0:00:38.7]}
49... Kf5 {[%clk 0:00:08.1]} 50. Rc6 {[%clk 0:00:38.1]} 50... Rh2 {[%clk
0:00:06.8]} 51. Kf2 {[%clk 0:00:37.9]} 51... Bf7 {[%clk 0:00:02.8]} 52. Rxc5+
{[%clk 0:00:36.1]} 52... Kg4 {[%clk 0:00:03.4]} 53. Rg5+ {[%clk 0:00:35]} 53...
Kh3 {[%clk 0:00:02.8]} 54. Kg1 {[%clk 0:00:28.8]} 1-0

[Event "Early-Titled-Tuesday-Blitz-February-20-2024"]
[Site "Chess.com"]
[Date "2024.02.20"]
[Round "2"]
[White "yuriydovzik"]
[Black "ploxoi"]
[Result "0-1"]
[WhiteElo "2123"]
[BlackElo "2444"]
[TimeControl "180+1"]
[EndTime "8:18:01 PST"]
[Termination "ploxoi won on time"]

1. e4 {[%clk 0:02:54.8]} 1... c5 {[%clk 0:02:58.3]} 2. Nf3 {[%clk 0:02:50.9]}
2... e6 {[%clk 0:02:58.3]} 3. d3 {[%clk 0:02:50.1]} 3... Nc6 {[%clk 0:02:57.2]}
4. g3 {[%clk 0:02:49.1]} 4... d5 {[%clk 0:02:57.7]} 5. Qe2 {[%clk 0:02:41.2]}
5... Nf6 {[%clk 0:02:57.1]} 6. Bg2 {[%clk 0:02:39.8]} 6... g6 {[%clk 0:02:57.3]}
7. O-O {[%clk 0:02:37.3]} 7... Bg7 {[%clk 0:02:57.4]} 8. c3 {[%clk 0:02:34]}
8... O-O {[%clk 0:02:47.2]} 9. a3 {[%clk 0:02:32.1]} 9... a5 {[%clk 0:02:42.9]}
10. a4 {[%clk 0:02:31.1]} 10... b6 {[%clk 0:02:40]} 11. Na3 {[%clk 0:02:29.3]}
11... Ba6 {[%clk 0:02:36.3]} 12. Nb5 {[%clk 0:02:19]} 12... h6 {[%clk
0:02:09.6]} 13. Re1 {[%clk 0:02:16.9]} 13... dxe4 {[%clk 0:01:46.8]} 14. dxe4
{[%clk 0:02:15]} 14... Qe7 {[%clk 0:01:47.4]} 15. h4 {[%clk 0:01:57.6]} 15...
Rfd8 {[%clk 0:01:45.6]} 16. e5 {[%clk 0:01:51.7]} 16... Nd5 {[%clk 0:01:45.2]}
17. Bd2 {[%clk 0:01:39.6]} 17... Rac8 {[%clk 0:01:34.7]} 18. Rad1 {[%clk
0:01:38]} 18... Nc7 {[%clk 0:00:45]} 19. c4 {[%clk 0:01:31.1]} 19... Bxb5 {[%clk
0:00:35.5]} 20. axb5 {[%clk 0:01:26.1]} 20... Nd4 {[%clk 0:00:35.7]} 21. Nxd4
{[%clk 0:01:24.3]} 21... Rxd4 {[%clk 0:00:36.6]} 22. Bc3 {[%clk 0:01:18.8]}
22... Rxd1 {[%clk 0:00:29.9]} 23. Rxd1 {[%clk 0:01:17.7]} 23... Rd8 {[%clk
0:00:30.4]} 24. Bc6 {[%clk 0:01:12.2]} 24... Kf8 {[%clk 0:00:24.4]} 25. Rd3
{[%clk 0:01:05.8]} 25... f5 {[%clk 0:00:11.3]} 26. Qd2 {[%clk 0:01:03.1]} 26...
Rxd3 {[%clk 0:00:11.2]} 27. Qxd3 {[%clk 0:01:03.1]} 27... g5 {[%clk 0:00:10.2]}
28. hxg5 {[%clk 0:01:00.5]} 28... hxg5 {[%clk 0:00:11.1]} 29. Qd6 {[%clk
0:00:58.5]} 29... g4 {[%clk 0:00:11.4]} 30. Kf1 {[%clk 0:00:55.8]} 30... Bh6
{[%clk 0:00:11.8]} 31. Ke2 {[%clk 0:00:54.5]} 31... Bg5 {[%clk 0:00:12.3]} 32.
Bd7 {[%clk 0:00:50.6]} 32... Qxd6 {[%clk 0:00:11.9]} 33. exd6 {[%clk 0:00:50.2]}
33... Ne8 {[%clk 0:00:12.5]} 34. Be5 {[%clk 0:00:48.1]} 34... Bd8 {[%clk
0:00:10.9]} 35. Bc6 {[%clk 0:00:43.5]} 35... Nf6 {[%clk 0:00:08.5]} 36. Ke3
{[%clk 0:00:33.2]} 36... Nh5 {[%clk 0:00:08.9]} 37. b3 {[%clk 0:00:30.6]} 37...
Bg5+ {[%clk 0:00:09]} 38. Ke2 {[%clk 0:00:27.9]} 38... Bd8 {[%clk 0:00:09.9]}
39. Kd3 {[%clk 0:00:23.2]} 39... Kf7 {[%clk 0:00:10.4]} 40. Bd7 {[%clk
0:00:20.4]} 40... Bf6 {[%clk 0:00:09.5]} 41. Ke3 {[%clk 0:00:17.7]} 41... Bxe5
{[%clk 0:00:09.5]} 0-1